[Event "Early-Titled-Tuesday-Blitz-October-24-2023"]
[Site "Chess.com"]
[Date "2023.10.24"]
[Round "3"]
[White "Andrei_Skvortsov"]
[Black "abhidabhi"]
[Result "0-1"]
[WhiteElo "2660"]
[BlackElo "2886"]
[TimeControl "180+1"]
[EndTime "8:27:28 PDT"]
[Termination "abhidabhi won by checkmate"]

1. e4 {[%clk 0:03:00.9]} 1... c5 {[%clk 0:02:59.5]} 2. d4 {[%clk 0:03:00.7]}
2... cxd4 {[%clk 0:02:59.2]} 3. Qxd4 {[%clk 0:03:01.6]} 3... Nc6 {[%clk
0:02:58.7]} 4. Qd3 {[%clk 0:03:02]} 4... Nf6 {[%clk 0:02:57.1]} 5. Nc3 {[%clk
0:03:01.4]} 5... d6 {[%clk 0:02:54.7]} 6. Nf3 {[%clk 0:03:01.1]} 6... g6 {[%clk
0:02:54.7]} 7. Be2 {[%clk 0:03:00.8]} 7... Bg7 {[%clk 0:02:54.6]} 8. O-O {[%clk
0:03:00.5]} 8... O-O {[%clk 0:02:54.9]} 9. Nd5 {[%clk 0:03:01.1]} 9... Nxd5
{[%clk 0:02:47.9]} 10. exd5 {[%clk 0:03:02]} 10... Bf5 {[%clk 0:02:47.7]} 11.
Qd1 {[%clk 0:02:59.9]} 11... Nb4 {[%clk 0:02:45.5]} 12. c3 {[%clk 0:02:56.8]}
12... Na6 {[%clk 0:02:30.1]} 13. a4 {[%clk 0:02:55.2]} 13... Nc5 {[%clk
0:02:28.9]} 14. Be3 {[%clk 0:02:55.6]} 14... a6 {[%clk 0:02:24.5]} 15. Re1
{[%clk 0:02:51.6]} 15... Rc8 {[%clk 0:02:23]} 16. Ra3 {[%clk 0:02:45.7]} 16...
Qc7 {[%clk 0:02:20.6]} 17. Bf1 {[%clk 0:02:35.4]} 17... Rfe8 {[%clk 0:02:07.3]}
18. h3 {[%clk 0:02:16.6]} 18... Bd7 {[%clk 0:01:57.7]} 19. Bg5 {[%clk
0:01:58.6]} 19... e5 {[%clk 0:01:49.8]} 20. b4 {[%clk 0:01:50.9]} 20... Nxa4
{[%clk 0:01:45.8]} 21. Rxa4 {[%clk 0:01:51.8]} 21... Bxa4 {[%clk 0:01:45.9]} 22.
Qxa4 {[%clk 0:01:52.2]} 22... Qxc3 {[%clk 0:01:42.1]} 23. Rc1 {[%clk 0:01:52.3]}
23... Qb2 {[%clk 0:01:34.3]} 24. Qd7 {[%clk 0:01:51.4]} 24... Rb8 {[%clk
0:01:11.8]} 25. Rc7 {[%clk 0:01:50]} 25... Rf8 {[%clk 0:01:11.9]} 26. Be7 {[%clk
0:01:47.2]} 26... e4 {[%clk 0:01:12.3]} 27. Ng5 {[%clk 0:01:21.8]} 27... e3
{[%clk 0:01:00.5]} 28. fxe3 {[%clk 0:01:21.7]} 28... Qd2 {[%clk 0:01:00.6]} 29.
Bxf8 {[%clk 0:00:26.2]} 29... Qxe3+ {[%clk 0:01:00.5]} 30. Kh1 {[%clk 0:00:24]}
30... Rxf8 {[%clk 0:01:00]} 31. Nf3 {[%clk 0:00:23.9]} 31... Qf2 {[%clk
0:01:00.2]} 32. Bd3 {[%clk 0:00:18.1]} 32... Qe3 {[%clk 0:01:00.3]} 33. Bf1
{[%clk 0:00:15.9]} 33... Qe4 {[%clk 0:00:39.3]} 34. Rxb7 {[%clk 0:00:15.3]}
34... Qxd5 {[%clk 0:00:39]} 35. Ra7 {[%clk 0:00:14.8]} 35... Qd1 {[%clk
0:00:36]} 36. Nh2 {[%clk 0:00:14.2]} 36... Be5 {[%clk 0:00:36]} 37. Rxa6 {[%clk
0:00:09.9]} 37... Bxh2 {[%clk 0:00:27.4]} 38. Kxh2 {[%clk 0:00:10.8]} 38... Qxf1
{[%clk 0:00:27.6]} 39. Qxd6 {[%clk 0:00:11.4]} 39... Re8 {[%clk 0:00:27.2]} 40.
Qc6 {[%clk 0:00:07.4]} 40... Qf4+ {[%clk 0:00:26.4]} 41. g3 {[%clk 0:00:06.4]}
41... Re2+ {[%clk 0:00:26.2]} 42. Kh1 {[%clk 0:00:06.8]} 42... Qf1# {[%clk
0:00:26.3]} 0-1

[Event "Early-Titled-Tuesday-Blitz-October-24-2023"]
[Site "Chess.com"]
[Date "2023.10.24"]
[Round "3"]
[White "temiksmozg"]
[Black "SargissyanSargis"]
[Result "1-0"]
[WhiteElo "2583"]
[BlackElo "2405"]
[TimeControl "180+1"]
[EndTime "8:27:31 PDT"]
[Termination "temiksmozg won on time"]

1. d4 {[%clk 0:03:00.9]} 1... Nf6 {[%clk 0:02:59.7]} 2. c4 {[%clk 0:02:54.7]}
2... g6 {[%clk 0:03:00.2]} 3. Nc3 {[%clk 0:02:54.1]} 3... Bg7 {[%clk 0:03:00.8]}
4. e4 {[%clk 0:02:54.2]} 4... d6 {[%clk 0:03:00.7]} 5. f3 {[%clk 0:02:54.4]}
5... O-O {[%clk 0:03:00.7]} 6. Nge2 {[%clk 0:02:55.3]} 6... a6 {[%clk
0:02:45.3]} 7. Be3 {[%clk 0:02:54.8]} 7... Nbd7 {[%clk 0:02:33.3]} 8. Qd2 {[%clk
0:02:50]} 8... c5 {[%clk 0:02:33.2]} 9. Rc1 {[%clk 0:02:45.6]} 9... cxd4 {[%clk
0:02:29.9]} 10. Nxd4 {[%clk 0:02:44.9]} 10... Nc5 {[%clk 0:02:22.4]} 11. Be2
{[%clk 0:02:44.3]} 11... Bd7 {[%clk 0:02:22.6]} 12. O-O {[%clk 0:02:41.3]} 12...
Rc8 {[%clk 0:02:09]} 13. Rfd1 {[%clk 0:02:40.3]} 13... Ne6 {[%clk 0:01:45.4]}
14. b3 {[%clk 0:02:35.2]} 14... Nxd4 {[%clk 0:01:44.4]} 15. Bxd4 {[%clk
0:02:36.1]} 15... Be6 {[%clk 0:01:26.5]} 16. Na4 {[%clk 0:01:53.3]} 16... Nd7
{[%clk 0:01:26.1]} 17. Be3 {[%clk 0:01:51]} 17... f5 {[%clk 0:01:11]} 18. exf5
{[%clk 0:01:46.9]} 18... gxf5 {[%clk 0:01:07.4]} 19. Bf1 {[%clk 0:01:35]} 19...
Qe8 {[%clk 0:00:51.5]} 20. Re1 {[%clk 0:01:27.9]} 20... Qg6 {[%clk 0:00:48.3]}
21. Nb6 {[%clk 0:01:24.2]} 21... Nxb6 {[%clk 0:00:46.4]} 22. Bxb6 {[%clk
0:01:25.1]} 22... Rf7 {[%clk 0:00:26.1]} 23. Bd4 {[%clk 0:00:32.8]} 23... Bxd4+
{[%clk 0:00:19.6]} 24. Qxd4 {[%clk 0:00:33.7]} 24... Bd7 {[%clk 0:00:15.3]} 25.
c5 {[%clk 0:00:30.5]} 25... Qf6 {[%clk 0:00:10.3]} 26. Qd2 {[%clk 0:00:24.7]}
26... Kg7 {[%clk 0:00:09.2]} 27. Bc4 {[%clk 0:00:22.6]} 27... Rxc5 {[%clk
0:00:04.2]} 28. Bxf7 {[%clk 0:00:22.3]} 28... Rxc1 {[%clk 0:00:01.7]} 29. Qxc1
{[%clk 0:00:18.7]} 29... Kxf7 {[%clk 0:00:02.2]} 30. Qc4+ {[%clk 0:00:18.9]}
30... Be6 {[%clk 0:00:01.8]} 31. Qd3 {[%clk 0:00:13.6]} 31... Qg6 {[%clk
0:00:01.5]} 32. Qe3 {[%clk 0:00:12.6]} 32... Qf6 {[%clk 0:00:01.8]} 33. Qb6
{[%clk 0:00:12.2]} 33... Qc3 {[%clk 0:00:02.1]} 34. Qf2 {[%clk 0:00:08.7]} 34...
Qc6 {[%clk 0:00:01.5]} 35. Qh4 {[%clk 0:00:07.6]} 35... Qc5+ {[%clk 0:00:01.6]}
36. Kh1 {[%clk 0:00:08]} 1-0

[Event "Early-Titled-Tuesday-Blitz-October-24-2023"]
[Site "Chess.com"]
[Date "2023.10.24"]
[Round "3"]
[White "lefonghua"]
[Black "Blitzstream"]
[Result "1-0"]
[WhiteElo "2667"]
[BlackElo "2840"]
[TimeControl "180+1"]
[EndTime "8:27:32 PDT"]
[Termination "lefonghua won by resignation"]

1. d4 {[%clk 0:03:00.9]} 1... d5 {[%clk 0:03:00.2]} 2. c4 {[%clk 0:03:01.2]}
2... c6 {[%clk 0:03:00.7]} 3. Nf3 {[%clk 0:03:01.3]} 3... Nf6 {[%clk 0:03:01.3]}
4. Nc3 {[%clk 0:03:01.8]} 4... Bf5 {[%clk 0:03:01.2]} 5. cxd5 {[%clk 0:03:01.8]}
5... Nxd5 {[%clk 0:03:01.4]} 6. g3 {[%clk 0:03:01.7]} 6... Nd7 {[%clk
0:03:00.9]} 7. Bg2 {[%clk 0:03:02]} 7... N7f6 {[%clk 0:03:01.2]} 8. O-O {[%clk
0:03:01.9]} 8... e6 {[%clk 0:03:01.6]} 9. Ne5 {[%clk 0:02:59.1]} 9... Be7 {[%clk
0:02:58.8]} 10. Re1 {[%clk 0:02:58]} 10... Bg6 {[%clk 0:02:57.9]} 11. e4 {[%clk
0:02:52]} 11... Nb6 {[%clk 0:02:57.9]} 12. Be3 {[%clk 0:02:37.1]} 12... O-O
{[%clk 0:02:57.6]} 13. Nxg6 {[%clk 0:02:36.8]} 13... hxg6 {[%clk 0:02:57.3]} 14.
b3 {[%clk 0:02:36]} 14... Rc8 {[%clk 0:02:49.7]} 15. Qe2 {[%clk 0:02:32.5]}
15... c5 {[%clk 0:02:43.1]} 16. Red1 {[%clk 0:02:24.7]} 16... cxd4 {[%clk
0:02:31.3]} 17. Bxd4 {[%clk 0:02:24.3]} 17... Qc7 {[%clk 0:02:22.3]} 18. Nb5
{[%clk 0:02:12.9]} 18... Qb8 {[%clk 0:02:20.7]} 19. Bxb6 {[%clk 0:02:04.6]}
19... axb6 {[%clk 0:02:19.8]} 20. e5 {[%clk 0:02:05.3]} 20... Nd5 {[%clk
0:01:40.1]} 21. Bxd5 {[%clk 0:02:04.7]} 21... exd5 {[%clk 0:01:41]} 22. Rxd5
{[%clk 0:02:04.9]} 22... Rc5 {[%clk 0:01:14.6]} 23. Rad1 {[%clk 0:02:01.5]}
23... Qc8 {[%clk 0:01:04.1]} 24. Nd6 {[%clk 0:01:52.2]} 24... Qc6 {[%clk
0:00:58]} 25. Rxc5 {[%clk 0:01:46.4]} 25... bxc5 {[%clk 0:00:58.9]} 26. Qe4
{[%clk 0:01:40]} 26... Qxe4 {[%clk 0:00:30.7]} 27. Nxe4 {[%clk 0:01:40.9]} 27...
b5 {[%clk 0:00:26.9]} 28. Rd7 {[%clk 0:01:34.6]} 28... Re8 {[%clk 0:00:26.8]}
29. Rb7 {[%clk 0:01:23.3]} 29... b4 {[%clk 0:00:26.5]} 30. Nd6 {[%clk 0:01:19]}
30... Bxd6 {[%clk 0:00:23.2]} 31. exd6 {[%clk 0:01:19.9]} 31... Rd8 {[%clk
0:00:18.7]} 32. d7 {[%clk 0:01:17.3]} 32... Kf8 {[%clk 0:00:18.6]} 33. Rc7
{[%clk 0:01:14.1]} 33... Ke7 {[%clk 0:00:18.7]} 34. Rxc5 {[%clk 0:01:13.9]}
34... Rxd7 {[%clk 0:00:19.3]} 35. Rb5 {[%clk 0:01:12.6]} 35... Ra7 {[%clk
0:00:16.1]} 36. Rxb4 {[%clk 0:01:12.3]} 36... Rxa2 {[%clk 0:00:16.7]} 37. h4
{[%clk 0:01:10.8]} 37... f6 {[%clk 0:00:10.8]} 38. Rb7+ {[%clk 0:01:10.5]} 38...
Kf8 {[%clk 0:00:11.2]} 39. Kg2 {[%clk 0:01:08.4]} 39... Kg8 {[%clk 0:00:11.3]}
40. b4 {[%clk 0:01:07.9]} 40... Kh7 {[%clk 0:00:11.7]} 41. b5 {[%clk 0:01:08.3]}
41... Rb2 {[%clk 0:00:10.7]} 42. Rb8 {[%clk 0:01:08.2]} 42... Rb3 {[%clk
0:00:10.6]} 43. b6 {[%clk 0:01:08.3]} 43... g5 {[%clk 0:00:11]} 44. hxg5 {[%clk
0:00:59.3]} 44... fxg5 {[%clk 0:00:11.9]} 45. Kf1 {[%clk 0:00:59.5]} 45... Rb2
{[%clk 0:00:11.5]} 46. Ke1 {[%clk 0:00:59.8]} 46... Kg6 {[%clk 0:00:11.4]} 47.
g4 {[%clk 0:00:54.8]} 47... Rb4 {[%clk 0:00:09.4]} 48. Kd2 {[%clk 0:00:48.5]}
48... Rxg4 {[%clk 0:00:08.4]} 49. Kc3 {[%clk 0:00:49]} 49... Rg1 {[%clk
0:00:08.5]} 50. Kc4 {[%clk 0:00:44.6]} 50... Rf1 {[%clk 0:00:08.4]} 51. Rf8
{[%clk 0:00:42.8]} 51... Rb1 {[%clk 0:00:07.1]} 52. Kc5 {[%clk 0:00:43.3]} 52...
g4 {[%clk 0:00:07.4]} 53. Kc6 {[%clk 0:00:42.9]} 53... Kg5 {[%clk 0:00:07.4]}
54. b7 {[%clk 0:00:43]} 54... Rc1+ {[%clk 0:00:07.8]} 55. Kd5 {[%clk 0:00:40.9]}
55... Rd1+ {[%clk 0:00:07.2]} 56. Ke4 {[%clk 0:00:41]} 56... Re1+ {[%clk
0:00:07.5]} 57. Kd3 {[%clk 0:00:41.3]} 1-0

[Event "Early-Titled-Tuesday-Blitz-October-24-2023"]
[Site "Chess.com"]
[Date "2023.10.24"]
[Round "3"]
[White "jaskol95"]
[Black "Balla_Tamas"]
[Result "1-0"]
[WhiteElo "2563"]
[BlackElo "2368"]
[TimeControl "180+1"]
[EndTime "8:27:33 PDT"]
[Termination "jaskol95 won by resignation"]

1. e4 {[%clk 0:03:00.9]} 1... c5 {[%clk 0:03:00.1]} 2. Nf3 {[%clk 0:03:00.8]}
2... Nc6 {[%clk 0:03:00.4]} 3. b4 {[%clk 0:03:01.3]} 3... cxb4 {[%clk
0:02:59.9]} 4. d4 {[%clk 0:03:01.6]} 4... d5 {[%clk 0:02:58.9]} 5. exd5 {[%clk
0:03:01.3]} 5... Qxd5 {[%clk 0:02:59.8]} 6. c4 {[%clk 0:03:01.9]} 6... bxc3
{[%clk 0:03:00.5]} 7. Nxc3 {[%clk 0:03:02.5]} 7... Qa5 {[%clk 0:03:01.1]} 8. Rb1
{[%clk 0:03:03.1]} 8... e6 {[%clk 0:02:58.6]} 9. Bd2 {[%clk 0:02:59.7]} 9... Bb4
{[%clk 0:02:51.6]} 10. Rxb4 {[%clk 0:02:59.7]} 10... Qxb4 {[%clk 0:02:26.1]} 11.
d5 {[%clk 0:03:00]} 11... Nd4 {[%clk 0:02:08.4]} 12. Nxd4 {[%clk 0:02:19.4]}
12... Qxd4 {[%clk 0:02:09.3]} 13. Bb5+ {[%clk 0:02:18.6]} 13... Kf8 {[%clk
0:01:32.8]} 14. O-O {[%clk 0:02:17.3]} 14... Nf6 {[%clk 0:01:33.2]} 15. Qc1
{[%clk 0:01:50.2]} 15... exd5 {[%clk 0:01:02.5]} 16. Be3 {[%clk 0:01:38.7]}
16... Qe5 {[%clk 0:00:32.6]} 17. Bc5+ {[%clk 0:01:21.4]} 17... Kg8 {[%clk
0:00:32.7]} 18. Re1 {[%clk 0:01:21.6]} 18... Qh5 {[%clk 0:00:32.1]} 19. Bd4
{[%clk 0:01:02.6]} 19... Be6 {[%clk 0:00:31.1]} 20. Qf4 {[%clk 0:00:53.1]} 20...
Qf5 {[%clk 0:00:24.3]} 21. Qc7 {[%clk 0:00:45.7]} 21... Rc8 {[%clk 0:00:23.3]}
22. Qxb7 {[%clk 0:00:45]} 22... h6 {[%clk 0:00:23.5]} 23. Ne2 {[%clk 0:00:37]}
23... Kh7 {[%clk 0:00:21.9]} 24. Ng3 {[%clk 0:00:35.6]} 24... Qg4 {[%clk
0:00:17.1]} 25. h3 {[%clk 0:00:32.8]} 25... Qxd4 {[%clk 0:00:15.8]} 26. Ne2
{[%clk 0:00:15.8]} 26... Qb6 {[%clk 0:00:15.4]} 27. Qe7 {[%clk 0:00:14.6]} 27...
Qxb5 {[%clk 0:00:13.5]} 28. Nf4 {[%clk 0:00:15.2]} 28... Qb4 {[%clk 0:00:13.3]}
29. Qxb4 {[%clk 0:00:14.5]} 29... Rc4 {[%clk 0:00:12.9]} 30. Qb1+ {[%clk
0:00:14.5]} 30... Kg8 {[%clk 0:00:11]} 31. Nxe6 {[%clk 0:00:14.2]} 31... fxe6
{[%clk 0:00:11.4]} 32. Rxe6 {[%clk 0:00:14.2]} 32... Kf7 {[%clk 0:00:12]} 33.
Ra6 {[%clk 0:00:13]} 33... Rhc8 {[%clk 0:00:12.3]} 34. Rxa7+ {[%clk 0:00:13.6]}
34... Kg8 {[%clk 0:00:12.8]} 35. Qg6 {[%clk 0:00:12.6]} 35... R4c7 {[%clk
0:00:12.4]} 36. Rxc7 {[%clk 0:00:12.1]} 36... Rxc7 {[%clk 0:00:13.3]} 37. a4
{[%clk 0:00:11.6]} 37... Rd7 {[%clk 0:00:13.8]} 38. a5 {[%clk 0:00:11.3]} 38...
d4 {[%clk 0:00:14.4]} 39. Qd3 {[%clk 0:00:11]} 39... Ne4 {[%clk 0:00:12.3]} 40.
Qxe4 {[%clk 0:00:09.8]} 40... d3 {[%clk 0:00:12.9]} 41. Qc4+ {[%clk 0:00:09.8]}
41... Kh7 {[%clk 0:00:12.9]} 42. Qe4+ {[%clk 0:00:09.9]} 42... Kh8 {[%clk
0:00:13]} 43. Qe8+ {[%clk 0:00:10.5]} 43... Kh7 {[%clk 0:00:13.7]} 44. Qxd7
{[%clk 0:00:11.2]} 44... d2 {[%clk 0:00:14]} 45. Qxd2 {[%clk 0:00:12.1]} 1-0

[Event "Early-Titled-Tuesday-Blitz-October-24-2023"]
[Site "Chess.com"]
[Date "2023.10.24"]
[Round "3"]
[White "IsuruAlahakoon"]
[Black "tarno17"]
[Result "1-0"]
[WhiteElo "2341"]
[BlackElo "2110"]
[TimeControl "180+1"]
[EndTime "8:27:33 PDT"]
[Termination "IsuruAlahakoon won by checkmate"]

1. Nf3 {[%clk 0:03:00.9]} 1... d5 {[%clk 0:02:53.5]} 2. e3 {[%clk 0:03:00.1]}
2... e6 {[%clk 0:02:51.2]} 3. c4 {[%clk 0:02:59.1]} 3... Nf6 {[%clk 0:02:50.8]}
4. b3 {[%clk 0:02:58.8]} 4... Be7 {[%clk 0:02:45.3]} 5. Bb2 {[%clk 0:02:58.1]}
5... O-O {[%clk 0:02:43.8]} 6. Nc3 {[%clk 0:02:57.6]} 6... b6 {[%clk 0:02:35.5]}
7. cxd5 {[%clk 0:02:56.9]} 7... exd5 {[%clk 0:02:32.7]} 8. d4 {[%clk 0:02:54.4]}
8... Bb7 {[%clk 0:02:27.1]} 9. Bd3 {[%clk 0:02:53.2]} 9... Nbd7 {[%clk
0:02:27.6]} 10. O-O {[%clk 0:02:51.6]} 10... c5 {[%clk 0:02:27.1]} 11. Rc1
{[%clk 0:02:46.2]} 11... Rc8 {[%clk 0:02:16.2]} 12. Nb5 {[%clk 0:02:26.2]} 12...
a6 {[%clk 0:02:14.3]} 13. Nc3 {[%clk 0:02:25.8]} 13... c4 {[%clk 0:02:09.9]} 14.
bxc4 {[%clk 0:02:23]} 14... dxc4 {[%clk 0:02:10.8]} 15. Bf5 {[%clk 0:02:22.9]}
15... b5 {[%clk 0:02:04]} 16. a3 {[%clk 0:02:09.8]} 16... Re8 {[%clk 0:01:50.6]}
17. Ne5 {[%clk 0:02:08.7]} 17... g6 {[%clk 0:01:43.1]} 18. Bh3 {[%clk
0:02:04.7]} 18... Bf8 {[%clk 0:01:35.8]} 19. f4 {[%clk 0:01:56.6]} 19... Bg7
{[%clk 0:01:31.4]} 20. e4 {[%clk 0:01:38.5]} 20... Rc7 {[%clk 0:01:12.3]} 21.
Nxd7 {[%clk 0:01:37.5]} 21... Nxd7 {[%clk 0:01:04.6]} 22. e5 {[%clk 0:01:36.9]}
22... Nb6 {[%clk 0:01:03.8]} 23. f5 {[%clk 0:01:31.5]} 23... Nd5 {[%clk
0:00:52.5]} 24. f6 {[%clk 0:01:16.7]} 24... Bh6 {[%clk 0:00:51.9]} 25. Nxd5
{[%clk 0:01:15.1]} 25... Qxd5 {[%clk 0:00:48.1]} 26. Kh1 {[%clk 0:01:14.6]}
26... Rec8 {[%clk 0:00:23]} 27. Bc3 {[%clk 0:01:05.8]} 27... Rd8 {[%clk
0:00:14.2]} 28. Rc2 {[%clk 0:00:56.9]} 28... Re8 {[%clk 0:00:03.4]} 29. Re2
{[%clk 0:00:51.6]} 29... Bc8 {[%clk 0:00:03.6]} 30. Bxc8 {[%clk 0:00:47.7]}
30... Rcxc8 {[%clk 0:00:04]} 31. Qe1 {[%clk 0:00:47.5]} 31... Re6 {[%clk
0:00:04.2]} 32. Qh4 {[%clk 0:00:38.3]} 32... Bf8 {[%clk 0:00:04.5]} 33. Re3
{[%clk 0:00:37.2]} 33... h5 {[%clk 0:00:04.7]} 34. Rg3 {[%clk 0:00:33.5]} 34...
Kh7 {[%clk 0:00:04]} 35. Rh3 {[%clk 0:00:23.3]} 35... Bxa3 {[%clk 0:00:03.9]}
36. Qg5 {[%clk 0:00:21.3]} 36... Rh8 {[%clk 0:00:03.6]} 37. Rxh5+ {[%clk
0:00:19.4]} 37... gxh5 {[%clk 0:00:04.4]} 38. Qg7# {[%clk 0:00:19]} 1-0

[Event "Early-Titled-Tuesday-Blitz-October-24-2023"]
[Site "Chess.com"]
[Date "2023.10.24"]
[Round "3"]
[White "js20000"]
[Black "Russian_berezka"]
[Result "1-0"]
[WhiteElo "2920"]
[BlackElo "2690"]
[TimeControl "180+1"]
[EndTime "8:27:36 PDT"]
[Termination "js20000 won on time"]

1. Nf3 {[%clk 0:03:00.9]} 1... Nf6 {[%clk 0:02:59.8]} 2. b3 {[%clk 0:03:00.9]}
2... b6 {[%clk 0:02:54.5]} 3. g3 {[%clk 0:03:00.3]} 3... Bb7 {[%clk 0:02:53.9]}
4. Bg2 {[%clk 0:03:00.9]} 4... g6 {[%clk 0:02:53.4]} 5. Bb2 {[%clk 0:03:01]}
5... Bg7 {[%clk 0:02:53.6]} 6. O-O {[%clk 0:03:01.6]} 6... O-O {[%clk 0:02:54]}
7. c4 {[%clk 0:03:02]} 7... c5 {[%clk 0:02:49.5]} 8. Nc3 {[%clk 0:03:00.5]} 8...
d5 {[%clk 0:02:42.5]} 9. Nxd5 {[%clk 0:03:00.1]} 9... Nxd5 {[%clk 0:02:40.1]}
10. Bxg7 {[%clk 0:03:01]} 10... Kxg7 {[%clk 0:02:40.6]} 11. cxd5 {[%clk
0:03:01.2]} 11... Bxd5 {[%clk 0:02:39.1]} 12. d4 {[%clk 0:03:01.4]} 12... Nd7
{[%clk 0:02:33.6]} 13. Re1 {[%clk 0:02:58.2]} 13... Be4 {[%clk 0:02:25.8]} 14.
Qd2 {[%clk 0:02:53.3]} 14... cxd4 {[%clk 0:02:15.9]} 15. Qxd4+ {[%clk
0:02:52.1]} 15... Nf6 {[%clk 0:02:16.6]} 16. Qb2 {[%clk 0:02:52.5]} 16... Qc7
{[%clk 0:02:07]} 17. Rac1 {[%clk 0:02:52]} 17... Qb7 {[%clk 0:02:06.3]} 18. Qe5
{[%clk 0:02:42.7]} 18... Rac8 {[%clk 0:01:49.5]} 19. Bh3 {[%clk 0:02:22]} 19...
Rxc1 {[%clk 0:01:42.4]} 20. Rxc1 {[%clk 0:02:22.9]} 20... Bxf3 {[%clk
0:01:34.1]} 21. exf3 {[%clk 0:02:23.8]} 21... Qxf3 {[%clk 0:01:33.5]} 22. Bg2
{[%clk 0:02:18.7]} 22... Qf5 {[%clk 0:01:22.1]} 23. Qxe7 {[%clk 0:02:17.9]}
23... Qa5 {[%clk 0:01:02]} 24. Rc6 {[%clk 0:02:09.2]} 24... Ng4 {[%clk
0:00:42.6]} 25. Rc4 {[%clk 0:01:32.6]} 25... Ne5 {[%clk 0:00:37.6]} 26. Re4
{[%clk 0:01:31.4]} 26... Nc6 {[%clk 0:00:32.7]} 27. Qd7 {[%clk 0:01:20.7]} 27...
Qc5 {[%clk 0:00:25.7]} 28. Rc4 {[%clk 0:01:17.6]} 28... Ne5 {[%clk 0:00:22.7]}
29. Rxc5 {[%clk 0:01:17.7]} 29... Nxd7 {[%clk 0:00:22.8]} 30. Rc7 {[%clk
0:01:17.8]} 30... Ne5 {[%clk 0:00:20.2]} 31. Rxa7 {[%clk 0:01:17.4]} 31... Rd8
{[%clk 0:00:20.9]} 32. Rb7 {[%clk 0:01:05.5]} 32... Rd1+ {[%clk 0:00:20.7]} 33.
Bf1 {[%clk 0:01:05.6]} 33... Nf3+ {[%clk 0:00:19.6]} 34. Kg2 {[%clk 0:01:04.7]}
34... Ne1+ {[%clk 0:00:17.2]} 35. Kh3 {[%clk 0:01:04.8]} 35... Rd6 {[%clk
0:00:12.5]} 36. Bc4 {[%clk 0:01:03.8]} 36... Rf6 {[%clk 0:00:12.8]} 37. f4
{[%clk 0:01:02.4]} 37... h5 {[%clk 0:00:12.7]} 38. a4 {[%clk 0:01:01.7]} 38...
Nc2 {[%clk 0:00:08.2]} 39. Re7 {[%clk 0:00:53.3]} 39... Na3 {[%clk 0:00:04.2]}
40. Bd3 {[%clk 0:00:51.4]} 40... Rd6 {[%clk 0:00:03.6]} 41. Re3 {[%clk
0:00:51.8]} 41... Rd4 {[%clk 0:00:02.7]} 42. Kg2 {[%clk 0:00:50.1]} 42... Rb4
{[%clk 0:00:02.8]} 43. Be4 {[%clk 0:00:49.5]} 43... Rd4 {[%clk 0:00:02.7]} 44.
Kf3 {[%clk 0:00:48.9]} 44... Rd2 {[%clk 0:00:02.7]} 45. Re2 {[%clk 0:00:47.5]}
45... Rd1 {[%clk 0:00:02.4]} 46. Ke3 {[%clk 0:00:46.7]} 46... Nb1 {[%clk
0:00:02.1]} 47. Rc2 {[%clk 0:00:45.3]} 47... Re1+ {[%clk 0:00:01]} 48. Kd4
{[%clk 0:00:44.3]} 48... Rd1+ {[%clk 0:00:01.4]} 49. Bd3 {[%clk 0:00:38.2]}
49... Nd2 {[%clk 0:00:01.2]} 50. Kc3 {[%clk 0:00:38.1]} 50... Nf1 {[%clk
0:00:01.1]} 51. Bxf1 {[%clk 0:00:37.1]} 1-0

[Event "Early-Titled-Tuesday-Blitz-October-24-2023"]
[Site "Chess.com"]
[Date "2023.10.24"]
[Round "3"]
[White "BigAl"]
[Black "Flaccidmoves"]
[Result "0-1"]
[WhiteElo "2558"]
[BlackElo "2413"]
[TimeControl "180+1"]
[EndTime "8:27:36 PDT"]
[Termination "Flaccidmoves won by checkmate"]

1. e4 {[%clk 0:03:00.9]} 1... g6 {[%clk 0:02:51.7]} 2. d4 {[%clk 0:03:00.4]}
2... Bg7 {[%clk 0:02:50.6]} 3. Nc3 {[%clk 0:03:01.1]} 3... d6 {[%clk 0:02:47.8]}
4. Be3 {[%clk 0:03:01.5]} 4... a6 {[%clk 0:02:47.1]} 5. Qd2 {[%clk 0:03:01.5]}
5... b5 {[%clk 0:02:46.3]} 6. a4 {[%clk 0:03:02.1]} 6... b4 {[%clk 0:02:30.6]}
7. Nce2 {[%clk 0:03:01.9]} 7... Bb7 {[%clk 0:02:21.6]} 8. Ng3 {[%clk 0:03:02]}
8... c5 {[%clk 0:02:11.9]} 9. c3 {[%clk 0:03:01.7]} 9... Nf6 {[%clk 0:02:00.3]}
10. f3 {[%clk 0:02:38.7]} 10... h5 {[%clk 0:01:38.5]} 11. dxc5 {[%clk
0:02:28.3]} 11... bxc3 {[%clk 0:01:34.8]} 12. bxc3 {[%clk 0:02:28.1]} 12... h4
{[%clk 0:01:34.1]} 13. N3e2 {[%clk 0:02:28.2]} 13... d5 {[%clk 0:01:17.3]} 14.
e5 {[%clk 0:02:26.2]} 14... Nh5 {[%clk 0:01:16.6]} 15. f4 {[%clk 0:02:23.5]}
15... e6 {[%clk 0:01:10.2]} 16. Nd4 {[%clk 0:02:20.6]} 16... Nc6 {[%clk
0:01:05.9]} 17. Ngf3 {[%clk 0:02:17.3]} 17... Bh6 {[%clk 0:00:56.9]} 18. Nxc6
{[%clk 0:02:13.3]} 18... Bxc6 {[%clk 0:00:56.5]} 19. Nd4 {[%clk 0:02:13.5]}
19... Qc7 {[%clk 0:00:50.9]} 20. Be2 {[%clk 0:02:11]} 20... Ng7 {[%clk
0:00:45.5]} 21. O-O {[%clk 0:02:07.8]} 21... Nf5 {[%clk 0:00:42.6]} 22. Nxf5
{[%clk 0:01:52.3]} 22... gxf5 {[%clk 0:00:43.5]} 23. Bf3 {[%clk 0:01:47.5]}
23... Rg8 {[%clk 0:00:42.1]} 24. Kh1 {[%clk 0:01:47.5]} 24... Ke7 {[%clk
0:00:38.9]} 25. Rfb1 {[%clk 0:01:46.7]} 25... h3 {[%clk 0:00:30.8]} 26. g3
{[%clk 0:01:42.7]} 26... d4 {[%clk 0:00:29.5]} 27. cxd4 {[%clk 0:01:21.1]} 27...
Bxf3+ {[%clk 0:00:29.1]} 28. Kg1 {[%clk 0:01:22]} 28... Bd5 {[%clk 0:00:28.3]}
29. Rb6 {[%clk 0:01:21.2]} 29... Rgb8 {[%clk 0:00:26.4]} 30. Qb4 {[%clk
0:01:18.3]} 30... Kf8 {[%clk 0:00:23.1]} 31. Rb1 {[%clk 0:01:18.2]} 31... Rc8
{[%clk 0:00:19.1]} 32. c6+ {[%clk 0:01:15.9]} 32... Kg8 {[%clk 0:00:18.7]} 33.
a5 {[%clk 0:01:11.6]} 33... Bf8 {[%clk 0:00:18.6]} 34. Qe1 {[%clk 0:01:10.2]}
34... Rcb8 {[%clk 0:00:16.4]} 35. g4 {[%clk 0:01:05.1]} 35... fxg4 {[%clk
0:00:15.7]} 36. Qg3 {[%clk 0:01:04.1]} 36... Bf3 {[%clk 0:00:15.8]} 37. f5
{[%clk 0:01:01.4]} 37... exf5 {[%clk 0:00:15.4]} 38. Qf4 {[%clk 0:00:59]} 38...
Bg7 {[%clk 0:00:15.1]} 39. e6 {[%clk 0:00:52.5]} 39... Qxf4 {[%clk 0:00:14.4]}
40. Bxf4 {[%clk 0:00:52.1]} 40... Re8 {[%clk 0:00:14.5]} 41. d5 {[%clk
0:00:47.9]} 41... Bd4+ {[%clk 0:00:14.5]} 42. Kf1 {[%clk 0:00:47.9]} 42... fxe6
{[%clk 0:00:14.5]} 43. d6 {[%clk 0:00:47.9]} 43... e5 {[%clk 0:00:13.3]} 44. Bg5
{[%clk 0:00:48.1]} 44... f4 {[%clk 0:00:13.1]} 45. d7 {[%clk 0:00:45.7]} 45...
Rf8 {[%clk 0:00:12.8]} 46. c7 {[%clk 0:00:42.5]} 46... g3 {[%clk 0:00:13.3]} 47.
Ke1 {[%clk 0:00:36.3]} 47... g2 {[%clk 0:00:13.1]} 48. Kd2 {[%clk 0:00:36.2]}
48... Be3+ {[%clk 0:00:13.1]} 49. Kc2 {[%clk 0:00:35.5]} 49... Be4+ {[%clk
0:00:13.1]} 50. Kc3 {[%clk 0:00:35.7]} 50... Bxb6 {[%clk 0:00:12.3]} 51. axb6
{[%clk 0:00:34.4]} 51... Bxb1 {[%clk 0:00:12.1]} 52. d8=Q {[%clk 0:00:33]} 52...
Rfxd8 {[%clk 0:00:11.7]} 53. Bxd8 {[%clk 0:00:31.6]} 53... g1=Q {[%clk
0:00:11.6]} 54. b7 {[%clk 0:00:32.5]} 54... Qc5+ {[%clk 0:00:11.5]} 55. Kb2
{[%clk 0:00:33.3]} 55... Qc2+ {[%clk 0:00:11.5]} 56. Ka3 {[%clk 0:00:33.1]}
56... Qc3+ {[%clk 0:00:11.6]} 57. Ka4 {[%clk 0:00:32.5]} 57... Bc2# {[%clk
0:00:11.8]} 0-1